bitfinex-derivatives/quotes_SOLF0:USTF0_20241216
["timestamp","ask_amount","ask_price","bid_price","bid_amount"]
[1734377275116,6.77186513,218.69,218.54,5.58365981]
[1734377275320,6.77186513,218.69,218.54,8.62365981]
[1734377276124,2.2869,218.6,218.55,2.2873]
[1734377276317,6.77186513,218.69,218.54,8.62365981]
[1734377276717,6.77186513,218.69,218.54,5.58365981]
[1734377276918,21.23023072,218.67,218.54,5.58365981]
[1734377277119,17.68800868,218.66,218.53,3.04]
[1734377277318,3.04,218.65,218.5,3.04]
[1734377277528,2.2873,218.56,218.51,2.2878]
[1734377277825,3.04,218.65,218.5,3.04]
[1734377278026,2.287,218.59,218.54,2.2874]
[1734377278219,2.287,218.59,218.5,3.04]
[1734377278421,3.04,218.65,218.53,21.23023072]
[1734377278622,9.81186513,218.65,218.53,21.23023072]
[1734377278820,2.2869,218.6,218.56,2.2872]
[1734377279123,2.2869,218.6,218.53,26.7641245]
[1734377279327,9.81186513,218.65,218.53,26.7641245]
[1734377279624,2.2871,218.58,218.54,2.2875]
[1734377279924,2.2871,218.58,218.47,1.5219]
[1734377279925,2.2883,218.46,218.41,2.2888]
[1734377280329,3.04,218.54,218.44,5.58222953]
[1734377282031,3.04,218.54,218.4,1.6122]
[1734377282231,3.04,218.54,218.41,5.45414989]
[1734377282732,21.23023072,218.53,218.41,5.45414989]
[1734377282934,2.2887,218.43,218.4,1.6122]
[1734377283134,3.04,218.48,218.4,1.6122]
[1734377283329,3.04,218.48,218.38,3.0493]
[1734377283531,3.04,218.48,218.38,1.497]
[1734377283826,3.04,218.48,218.35,2.2894]
[1734377284024,3.04,218.48,218.34,21.23023072]
[1734377284227,2.289,218.4,218.34,23.51973072]
[1734377284431,2.289,218.4,218.34,21.23023072]
[1734377284633,3.04,218.48,218.34,21.23023072]
[1734377285225,2.289,218.4,218.35,7.73520374]
[1734377285432,3.04,218.47,218.35,5.44580374]
[1734377285834,3.04,218.47,218.35,7.73520374]
[1734377286034,3.04,218.47,218.35,5.44580374]
[1734377286437,3.04,218.47,218.37,2.2893]
[1734377286736,3.04,218.48,218.37,2.2893]
[1734377287933,2.2889,218.41,218.37,2.2893]
[1734377290831,3.04,218.48,218.37,2.2893]
[1734377290832,2.2887,218.43,218.37,2.2893]
[1734377291339,3.04,218.48,218.37,2.2893]
[1734377291541,6.80716564,218.52,218.42,2.2887]
[1734377291742,6.80716564,218.52,218.38,21.23023072]
[1734377291933,6.80716564,218.52,218.39,4.5384]
[1734377292136,6.80716564,218.52,218.39,17.82159435]
[1734377292636,6.80716564,218.52,218.41,2.2888]
[1734377293141,6.80716564,218.52,218.39,17.82159435]
[1734377293438,2.2883,218.47,218.42,2.2887]
[1734377294236,16.32319435,218.53,218.39,17.82159435]
[1734377294446,2.2882,218.48,218.39,17.82159435]
[1734377295037,2.2882,218.48,218.43,2.2885]
[1734377295943,2.2884,218.45,218.39,17.82159435]
[1734377296143,10.96332197,218.52,218.39,17.82159435]
[1734377296341,13.28319435,218.49,218.39,1.4984]
[1734377296545,2.2883,218.46,218.39,1.4984]
[1734377296849,13.28319435,218.49,218.39,1.4984]
[1734377297042,13.28319435,218.46,218.37,1.5348]
[1734377297941,2.2889,218.41,218.37,1.5348]
[1734377298144,13.28319435,218.46,218.37,1.5348]
[1734377299445,3.04,218.48,218.37,1.5348]
[1734377299843,13.99507937,218.48,218.37,1.5348]
[1734377300041,3.04,218.48,218.37,1.5348]
[1734377300244,13.99270799,218.48,218.37,1.5348]
[1734377300441,2.2889,218.41,218.37,1.5348]
[1734377300743,2.2889,218.41,218.37,3.8241]
[1734377300941,3.04,218.48,218.37,3.8241]
[1734377301147,2.2889,218.4,218.37,3.8241]
[1734377301343,3.04,218.48,218.37,3.8241]
[1734377301544,2.2888,218.42,218.38,2.2891]
[1734377302641,3.04,218.48,218.37,1.5348]
[1734377302849,13.28319435,218.46,218.35,5.44580374]
[1734377303039,2.2893,218.37,218.35,5.44580374]
[1734377303246,13.28319435,218.46,218.35,7.73520374]
[1734377303441,13.28319435,218.46,218.35,5.44580374]
[1734377303840,13.28319435,218.46,218.33,16.32319435]
[1734377304040,13.28319435,218.46,218.37,2.2892]
[1734377305252,13.28319435,218.49,218.36,13.28319435]
[1734377305451,16.32319435,218.49,218.36,14.76449435]
[1734377305646,2.2886,218.44,218.4,2.2889]
[1734377305848,2.2886,218.44,218.36,14.76449435]
[1734377306148,16.32319435,218.49,218.37,1.5415]
[1734377306343,1.0839,218.52,218.39,13.28319435]
[1734377306344,13.28319435,218.52,218.39,13.28319435]
[1734377306648,3.04,218.53,218.39,16.32319435]
[1734377306853,2.288,218.5,218.46,2.2883]
[1734377307044,16.32319435,218.55,218.46,2.2883]
[1734377307450,16.32319435,218.55,218.44,2.2884]
[1734377307451,2.288,218.49,218.44,2.2884]
[1734377307850,16.32319435,218.55,218.44,2.2884]
[1734377308149,2.2881,218.48,218.44,2.2884]
[1734377309650,21.69392542,218.55,218.4,1.5352]
[1734377309651,16.32319435,218.52,218.41,2.2887]
[1734377310048,16.32319435,218.52,218.4,1.5352]
[1734377310444,2.2884,218.46,218.42,2.2887]
[1734377311251,16.32319435,218.52,218.42,2.2887]
[1734377311456,2.2884,218.45,218.41,2.2888]
[1734377313554,2.2883,218.46,218.41,13.28319435]
[1734377313747,18.65392542,218.55,218.41,13.28319435]
[1734377313748,10.9527912,218.54,218.41,13.28319435]
[1734377313950,16.32319435,218.55,218.41,13.28319435]
[1734377314255,2.2879,218.5,218.46,2.2883]
[1734377314651,16.32319435,218.55,218.48,2.2881]
[1734377314652,2.2878,218.51,218.48,2.2881]
[1734377315254,2.2878,218.51,218.47,2.2882]
[1734377316149,16.32319435,218.58,218.44,13.28319435]
[1734377316351,10.97683678,218.57,218.47,13.28319435]
[1734377316559,2.287,218.59,218.54,2.2875]
[1734377316746,17.79538142,218.63,218.54,2.2875]
[1734377316946,17.79538142,218.63,218.53,13.28319435]
[1734377317355,17.79538142,218.62,218.54,3.04]
[1734377317555,16.34109435,218.67,218.54,3.04]
[1734377317747,10.9823342,218.66,218.56,13.28319435]
[1734377317950,13.28319435,218.7,218.57,1.5381]
[1734377318147,17.79896718,218.69,218.57,1.5381]
[1734377318352,6.81490115,218.68,218.57,1.5381]
[1734377318655,6.81271285,218.68,218.57,1.5381]
[1734377318854,2.2865,218.64,218.58,2.287]
[1734377319249,6.81271285,218.68,218.57,1.5381]
[1734377319456,2.2862,218.67,218.6,2.2868]
[1734377319652,2.2862,218.67,218.57,1.5381]
[1734377319849,2.2862,218.67,218.58,1.6022]
[1734377320152,17.79504252,218.71,218.6,2.2868]
[1734377320457,17.79504252,218.71,218.58,1.6022]
[1734377320458,13.28319435,218.69,218.58,1.6022]
[1734377320753,2.2864,218.65,218.59,2.2869]
[1734377320956,5.43268321,218.71,218.59,13.28319435]
[1734377321153,23.22688057,218.71,218.59,13.28319435]
[1734377321359,10.97939197,218.7,218.59,13.28319435]
[1734377321556,5.43268321,218.71,218.59,13.28319435]
[1734377321557,2.2862,218.67,218.59,13.28319435]
[1734377322249,2.286,218.69,218.63,2.2865]
[1734377322454,2.286,218.69,218.59,13.28319435]
[1734377322956,2.2865,218.63,218.58,2.287]
[1734377323172,13.28319435,218.63,218.47,14.89689435]
[1734377323460,2.287,218.59,218.51,2.2878]
[1734377323656,1.4922,218.65,218.54,13.28319435]
[1734377324254,6.80008997,218.66,218.54,13.28319435]
[1734377324850,10.96015024,218.67,218.54,13.28319435]
[1734377325553,2.2866,218.63,218.54,13.28319435]
[1734377325951,2.2866,218.63,218.55,3.04]
[1734377326856,2.2866,218.63,218.56,2.2873]
[1734377327061,2.2867,218.62,218.56,2.2873]
[1734377327657,2.2868,218.61,218.55,5.3274]
[1734377327959,6.7918664,218.66,218.54,16.32319435]
[1734377328361,13.28319435,218.65,218.54,3.04]
[1734377328554,10.96015024,218.64,218.54,3.04]
[1734377328862,10.96015024,218.64,218.54,5.3275]
[1734377329364,2.2867,218.61,218.54,5.3275]
[1734377331063,2.2869,218.6,218.54,5.3275]
[1734377331361,10.94490181,218.64,218.56,2.2872]
[1734377331562,2.2875,218.54,218.5,5.3816128]
[1734377331859,16.32319435,218.62,218.47,13.28319435]
[1734377332655,13.28319435,218.59,218.44,13.28319435]
[1734377332855,13.28319435,218.56,218.41,13.28319435]
[1734377333059,3.04,218.55,218.41,13.28319435]
[1734377333664,3.04,218.55,218.44,5.41628551]
[1734377334271,13.28319435,218.49,218.37,0.27592]
[1734377334559,3.04,218.5,218.37,0.27592]
[1734377334760,2.2882,218.48,218.37,3.23542]
[1734377334958,3.04,218.5,218.39,13.28319435]
[1734377335157,16.32319435,218.52,218.39,13.28319435]
[1734377335365,16.32319435,218.52,218.37,0.27592]
[1734377335366,2.2892,218.38,218.37,0.27592]
[1734377335571,13.28319435,218.49,218.37,0.27592]
[1734377335763,13.97198521,218.48,218.37,13.55911435]
[1734377336062,2.2886,218.44,218.37,13.55911435]
[1734377336467,2.2892,218.39,218.37,0.27592]
[1734377336659,5.62126466,218.54,218.37,0.27592]
[1734377336660,13.28319435,218.47,218.37,0.27592]
[1734377337059,3.04,218.48,218.37,0.27592]
[1734377337266,2.2888,218.42,218.37,0.27592]
[1734377337562,3.04,218.49,218.37,0.27592]
[1734377337758,5.62126466,218.54,218.37,0.27592]
[1734377337759,2.2886,218.44,218.37,0.27592]
[1734377337963,13.28319435,218.43,218.37,0.27592]
[1734377338162,3.04,218.43,218.29,13.28319435]
[1734377338364,2.2891,218.39,218.29,13.28319435]
[1734377338566,3.04,218.42,218.29,13.28319435]
[1734377339159,2.2895,218.35,218.29,13.28319435]
[1734377340360,2.2904,218.27,218.16,2.2914]
[1734377340558,13.28319435,218.37,218.23,13.28319435]
[1734377340759,13.28319435,218.37,218.24,1.5032]
[1734377340959,2.2898,218.32,218.24,1.5032]
[1734377341168,13.28319435,218.33,218.28,0.18617]
[1734377341367,5.47010058,218.43,218.28,0.18617]
[1734377341368,2.2896,218.34,218.28,0.18617]
[1734377341570,13.28319435,218.36,218.28,0.18617]
[1734377341968,2.2901,218.3,218.28,0.18617]
[1734377343664,15.57329435,218.3,218.28,0.18617]
[1734377344382,2.2901,218.3,218.28,0.18617]
[1734377346577,13.28319435,218.36,218.28,0.18617]
[1734377347071,2.2895,218.35,218.28,0.18617]
[1734377349176,13.28319435,218.39,218.28,0.18617]
[1734377350273,2.2895,218.35,218.28,0.18617]
[1734377350468,13.28319435,218.39,218.28,0.18617]
[1734377351274,2.2893,218.37,218.29,2.2901]
[1734377351886,13.28319435,218.39,218.28,0.18617]
[1734377352771,2.2893,218.37,218.3,2.29]
[1734377352971,13.28319435,218.42,218.28,13.46936435]
[1734377353366,13.28319435,218.42,218.32,2.2898]
[1734377353577,13.28319435,218.42,218.33,3.04]
[1734377354177,2.2888,218.42,218.34,2.2895]
[1734377354379,2.2888,218.42,218.33,3.04]
[1734377354875,2.2886,218.44,218.34,13.28319435]
[1734377355079,2.2886,218.44,218.35,1.5022]
[1734377355380,13.28319435,218.48,218.35,1.5022]
[1734377355584,13.28319435,218.48,218.36,1.499]
[1734377355777,13.28319435,218.51,218.37,13.28319435]
[1734377355978,2.2884,218.45,218.38,2.2891]
[1734377356182,3.04,218.53,218.39,3.04]
[1734377356183,13.28319435,218.48,218.39,3.04]
[1734377356576,2.2885,218.45,218.39,5.329]
[1734377356781,13.28319435,218.48,218.39,3.04]
[1734377356983,13.28319435,218.51,218.39,3.04]
[1734377357176,2.2883,218.46,218.39,3.04]
[1734377357575,2.2883,218.46,218.37,13.28319435]
[1734377357777,13.28319435,218.48,218.36,1.499]
[1734377357981,13.28319435,218.48,218.37,3.04]
[1734377360786,13.28319435,218.48,218.36,1.499]
[1734377360991,13.28319435,218.45,218.36,3.04]
[1734377361280,13.28319435,218.45,218.35,1.5022]
[1734377361788,2.2886,218.43,218.36,2.2893]
[1734377362085,2.2886,218.43,218.35,1.5022]
[1734377363086,2.2886,218.43,218.37,2.2892]
[1734377364486,2.2886,218.43,218.35,1.5022]
[1734377364487,2.2885,218.44,218.39,2.289]
[1734377364696,18.77112413,218.51,218.4,3.04]
[1734377364888,18.77112413,218.51,218.41,3.04]
[1734377365388,2.2882,218.47,218.41,5.3288]
[1734377365791,18.77112413,218.51,218.41,5.3288]
[1734377365982,2.2884,218.46,218.41,3.04]
[1734377366691,2.2882,218.48,218.41,3.04]
[1734377367287,2.2882,218.48,218.38,1.4998]
[1734377367288,2.2882,218.48,218.42,2.2887]
[1734377367485,13.28319435,218.48,218.38,1.4998]
[1734377367692,13.28319435,218.48,218.38,4.5398]
[1734377367889,10.89707618,218.47,218.34,13.28319435]
[1734377368090,2.2891,218.39,218.34,13.28319435]
[1734377368285,13.28319435,218.45,218.34,16.32319435]
[1734377368590,2.2887,218.42,218.34,18.61269435]
[1734377368789,13.28319435,218.45,218.34,16.32319435]
[1734377369200,2.2889,218.41,218.34,16.32319435]
[1734377369493,13.28319435,218.45,218.34,16.32319435]
[1734377369691,2.2887,218.42,218.34,16.32319435]
[1734377369991,13.28319435,218.45,218.34,16.32319435]
[1734377370385,13.28319435,218.48,218.34,16.32319435]
[1734377370591,3.04,218.49,218.37,13.28319435]
[1734377370892,10.91319648,218.5,218.37,13.28319435]
[1734377371093,13.28319435,218.51,218.37,13.28319435]
[1734377371495,8.42489434,218.53,218.4,13.28319435]
[1734377371496,10.92395967,218.5,218.4,13.28319435]
[1734377371693,5.38489434,218.53,218.41,3.04]
[1734377371897,5.38489434,218.53,218.43,2.2886]
[1734377372196,16.30873901,218.53,218.43,2.2886]
[1734377372393,16.30873901,218.53,218.43,13.28319435]
[1734377373498,16.30873901,218.53,218.41,3.04]
[1734377374002,2.2886,218.44,218.41,3.04]
[1734377374619,6.79274514,218.52,218.41,3.04]
[1734377374909,6.79274514,218.52,218.41,5.3288]
[1734377374910,17.71658981,218.52,218.41,5.3288]
[1734377375105,10.92384467,218.52,218.41,5.3288]
[1734377375300,10.92384467,218.51,218.41,3.04]
[1734377375505,10.92384467,218.5,218.41,3.04]
[1734377375712,5.38489434,218.53,218.41,3.04]
[1734377376006,2.2882,218.48,218.43,2.2886]
[1734377376803,6.79926465,218.51,218.41,3.04]
[1734377377105,6.79926465,218.51,218.4,13.28319435]
[1734377377312,6.79926465,218.51,218.42,3.04]
[1734377378010,2.2881,218.49,218.42,3.04]
[1734377378205,10.95538616,218.5,218.42,3.04]
[1734377378404,6.79926465,218.49,218.4,16.32319435]
[1734377378712,2.2885,218.45,218.4,16.32319435]
[1734377378911,13.3894576,218.51,218.42,2.2887]
[1734377379106,10.95538616,218.5,218.4,16.32319435]
[1734377379303,2.2882,218.48,218.4,16.32319435]
[1734377379610,9.08746465,218.48,218.4,16.32319435]
[1734377379910,2.2882,218.48,218.4,16.32319435]
[1734377380113,2.2882,218.48,218.43,2.2885]
[1734377380709,6.79926465,218.51,218.43,2.2885]
[1734377380710,2.288,218.49,218.43,2.2885]
[1734377381017,6.79926465,218.51,218.44,2.2884]
[1734377381313,6.79926465,218.51,218.43,13.28319435]
[1734377381514,17.75465081,218.51,218.46,13.28319435]
[1734377381706,17.75465081,218.51,218.47,3.04]
[1734377381912,10.95538616,218.51,218.47,3.04]
[1734377382108,2.2877,218.53,218.47,3.04]
[1734377382306,78.54352476,218.56,218.48,2.2881]
[1734377383512,78.54352476,218.56,218.47,5.3281]
[1734377383513,2.2876,218.54,218.47,5.3281]
[1734377383709,17.77397733,218.55,218.47,5.3281]
[1734377384110,2.2877,218.52,218.47,5.3281]
[1734377384617,10.96740646,218.55,218.47,3.04]
[1734377384820,2.2877,218.52,218.47,5.3281]
[1734377385211,2.2877,218.52,218.47,3.04]
[1734377385815,2.2875,218.54,218.49,2.288]
[1734377386119,10.96740646,218.55,218.49,13.28319435]
[1734377386620,13.25480646,218.55,218.51,2.2877]
[1734377386816,2.2874,218.55,218.51,2.2877]
[1734377387019,5.60239625,218.61,218.49,13.28319435]
[1734377387020,29.96544062,218.61,218.49,13.28319435]
[1734377387231,17.77494696,218.6,218.5,2.2879]
[1734377387515,6.80649325,218.59,218.49,13.28319435]
[1734377387917,2.2876,218.54,218.49,15.57119435]
[1734377388120,6.80649325,218.59,218.48,3.02]
[1734377388316,24.36281242,218.59,218.48,3.02]
[1734377388622,17.77494696,218.58,218.48,5.308]
[1734377388919,17.77494696,218.57,218.48,5.308]
[1734377389125,17.77494696,218.56,218.48,5.308]
[1734377389316,2.2877,218.53,218.48,5.308]
[1734377389712,10.96845371,218.59,218.48,5.308]
[1734377389918,2.2878,218.52,218.48,5.308]
[1734377390119,17.78095036,218.57,218.48,3.02]
[1734377390422,17.78095036,218.56,218.48,3.02]
[1734377390620,2.2878,218.51,218.48,3.02]
[1734377392015,2.2878,218.51,218.5,8.49619735]
[1734377392314,17.78095036,218.54,218.5,8.49619735]
[1734377392520,5.60239625,218.61,218.53,8.49619735]
[1734377392716,12.20413403,218.61,218.53,8.49619735]
[1734377392918,2.2871,218.58,218.53,8.49619735]
[1734377393115,13.42227836,218.59,218.53,10.78379735]
[1734377393318,13.42227836,218.59,218.47,3.02]
[1734377393319,8.49619735,218.55,218.47,3.02]
[1734377393524,2.288,218.49,218.48,8.49619735]
[1734377393728,8.49619735,218.53,218.46,8.49619735]
[1734377394020,17.81170678,218.53,218.45,4.5867]
[1734377394218,13.28090335,218.56,218.45,4.5867]
[1734377394219,6.82054058,218.52,218.45,4.5867]
[1734377394421,10.9911662,218.55,218.45,4.5867]
[1734377394422,6.82054058,218.54,218.45,4.5867]
[1734377394625,13.42286772,218.54,218.45,4.5867]
[1734377394825,10.9911662,218.53,218.45,4.5867]
[1734377395026,6.82054058,218.52,218.45,4.5867]
[1734377395226,17.81170678,218.52,218.45,4.5867]
[1734377395418,3.02,218.57,218.45,4.5867]
[1734377395419,17.81170678,218.51,218.45,4.5867]
[1734377395621,10.9911662,218.5,218.46,2.2883]
[1734377395825,10.9911662,218.49,218.46,2.2883]
[1734377396024,3.02,218.57,218.46,2.2883]
[1734377396425,27.44962701,218.57,218.46,2.2883]
[1734377396625,24.42962701,218.56,218.46,15.56920335]
[1734377396828,17.82349184,218.55,218.46,15.56920335]
[1734377397028,17.82349184,218.54,218.46,15.56920335]
[1734377397326,17.82349184,218.53,218.46,15.56920335]
[1734377397524,9.11305988,218.52,218.46,15.56920335]
[1734377397827,2.2877,218.52,218.46,15.56920335]
[1734377398422,20.11119184,218.52,218.46,15.56920335]
[1734377398621,17.82349184,218.51,218.46,18.58920335]
[1734377398832,10.99813196,218.5,218.46,16.30090335]
[1734377399126,2.2878,218.51,218.46,16.30090335]
[1734377401930,17.83969493,218.53,218.46,16.30090335]
[1734377402123,2.2879,218.5,218.46,16.30090335]
[1734377402530,2.2875,218.54,218.49,13.28090335]
[1734377402724,17.83845784,218.57,218.49,13.28090335]
[1734377402926,17.83845784,218.56,218.46,13.28090335]
[1734377403143,17.83823406,218.55,218.47,3.02]
[1734377403332,6.83111558,218.55,218.47,3.02]
[1734377403524,13.28090335,218.58,218.47,3.02]
[1734377403525,6.83111558,218.54,218.47,3.02]
[1734377403722,8.62239625,218.61,218.44,1.514]
[1734377403723,34.13913741,218.55,218.44,1.514]
[1734377403925,11.00711848,218.54,218.4,13.28090335]
[1734377404128,24.45040706,218.54,218.4,16.30090335]
[1734377404327,16.30090335,218.55,218.4,16.30090335]
[1734377404328,17.83823406,218.53,218.4,16.30090335]
[1734377404528,17.62010792,218.52,218.4,16.30090335]
[1734377404731,6.83111558,218.51,218.4,13.28090335]
[1734377404927,17.83823406,218.51,218.4,13.28090335]
[1734377405129,6.83111558,218.5,218.4,13.28090335]
[1734377405631,6.83111558,218.5,218.4,15.56980335]
[1734377406128,2.2883,218.46,218.4,15.56980335]
[1734377406329,11.00711848,218.49,218.43,13.28090335]
[1734377406533,17.83823406,218.48,218.43,13.28090335]
[1734377406831,11.00711848,218.47,218.39,1.5632]
[1734377407027,11.00711848,218.46,218.39,1.5632]
[1734377407235,11.00711848,218.45,218.39,1.5632]
[1734377407535,250.80109178,218.55,218.41,13.28090335]
[1734377407740,24.47652153,218.54,218.41,13.28090335]
[1734377408036,2.288,218.49,218.43,2.2885]
[1734377408433,2.288,218.49,218.43,5.3085]
[1734377408830,2.288,218.49,218.39,1.5632]
[1734377408831,6.83880689,218.49,218.39,1.5632]
[1734377409038,24.47765094,218.52,218.38,16.61216335]
[1734377409231,24.47765094,218.51,218.38,16.61216335]
[1734377409432,13.28090335,218.57,218.38,16.61216335]
[1734377409433,40.77855429,218.5,218.38,13.59216335]
[1734377409732,27.49765094,218.49,218.38,13.59216335]
[1734377410131,24.47765094,218.48,218.38,13.28090335]
[1734377410335,3.02,218.49,218.38,13.28090335]
[1734377410336,17.8576432,218.47,218.38,13.28090335]
[1734377410637,20.1459432,218.46,218.4,2.2889]
[1734377410937,11.01883631,218.45,218.4,2.2889]
[1734377411133,2.2883,218.46,218.4,2.2889]
[1734377412837,2.2885,218.45,218.4,2.2889]
[1734377413033,2.2885,218.45,218.39,2.289]
[1734377413344,2.2889,218.41,218.37,3.1242]
[1734377413639,13.46796846,218.47,218.37,3.1242]
[1734377413937,2.2889,218.41,218.37,3.1242]
[1734377414131,11.02671011,218.46,218.37,3.1242]
[1734377414328,6.84384832,218.47,218.37,3.1242]
[1734377414537,13.46902691,218.47,218.38,13.28090335]
[1734377414735,11.02671011,218.46,218.38,13.28090335]
[1734377415039,3.02,218.49,218.38,13.28090335]
[1734377415040,11.02671011,218.45,218.38,13.28090335]
[1734377415339,11.02671011,218.44,218.38,13.28090335]
[1734377415640,2.2888,218.42,218.38,13.28090335]
[1734377416242,2.2888,218.42,218.37,5.4134]
[1734377416437,31.13990223,218.47,218.37,3.1242]
[1734377416640,17.85899888,218.46,218.34,0.259]
[1734377416833,6.83960987,218.45,218.34,0.259]
[1734377417236,2.2893,218.38,218.34,0.259]
[1734377417641,6.83960987,218.45,218.34,0.259]
[1734377417833,13.45323438,218.45,218.34,0.259]
[1734377418141,13.28090335,218.41,218.34,0.259]
[1734377418338,2.2895,218.35,218.34,0.259]
[1734377423135,2.2895,218.35,218.23,3.02]
[1734377423136,2.2907,218.24,218.12,3.02]
[1734377423337,16.30090335,218.35,218.21,13.28090335]
[1734377424141,13.28090335,218.35,218.21,15.57180335]
[1734377424340,3.02,218.34,218.21,13.28090335]
[1734377424844,2.2903,218.27,218.21,13.28090335]
[1734377425350,3.02,218.34,218.21,13.28090335]
[1734377425543,2.29,218.31,218.21,13.28090335]
[1734377425739,3.02,218.34,218.21,13.28090335]
[1734377426649,2.2906,218.25,218.21,13.28090335]
[1734377427846,13.28090335,218.32,218.18,13.28090335]
[1734377428244,13.28090335,218.35,218.21,13.28090335]
[1734377428444,5.43210765,218.36,218.24,13.28090335]
[1734377428647,16.30090335,218.35,218.24,13.28090335]
[1734377430341,2.2902,218.28,218.21,13.28090335]
[1734377431140,2.2904,218.27,218.21,13.28090335]
[1734377431850,2.2905,218.26,218.21,13.28090335]
[1734377432446,2.2905,218.25,218.21,13.28090335]
[1734377433051,3.02,218.32,218.21,13.28090335]
[1734377433250,2.2906,218.24,218.21,13.28090335]
[1734377433942,16.30090335,218.32,218.21,13.28090335]
[1734377434148,2.2905,218.26,218.24,8.51623285]
[1734377434348,8.51623285,218.31,218.24,8.51623285]
[1734377434547,5.43210765,218.36,218.24,8.51623285]
[1734377434849,5.43210765,218.36,218.3,8.51623285]
[1734377435250,5.43210765,218.36,218.28,8.51623285]
[1734377435445,2.2897,218.33,218.28,8.51623285]
[1734377436450,2.2894,218.36,218.32,8.51623285]
[1734377436653,0.28032,218.42,218.34,8.51623285]
[1734377436850,8.51623285,218.41,218.34,8.51623285]
[1734377437353,8.51623285,218.39,218.32,8.51623285]
[1734377438254,0.28032,218.42,218.3,3.02]
[1734377438452,2.2893,218.37,218.3,5.3099]
[1734377439553,2.2896,218.35,218.3,3.02]
[1734377439753,13.29593826,218.4,218.26,13.29593826]
[1734377439953,13.29593826,218.4,218.27,3.02]
[1734377439954,10.90122244,218.39,218.27,3.02]
[1734377440150,2.2899,218.31,218.27,3.02]
[1734377442260,2.2899,218.31,218.22,3.02]
[1734377442454,2.2898,218.32,218.26,13.29593826]
[1734377443449,2.2898,218.32,218.27,3.8762]
[1734377444252,10.90122244,218.39,218.27,1.5859]
[1734377444453,2.2899,218.32,218.27,1.5859]
[1734377445760,13.29593826,218.36,218.27,1.5859]
[1734377446061,13.29593826,218.36,218.25,3.0091]
[1734377446659,10.91400491,218.35,218.25,3.0091]
[1734377446861,13.29593826,218.36,218.25,3.0091]
[1734377447366,10.91673317,218.35,218.25,3.0091]
[1734377447860,2.2898,218.32,218.25,3.0091]
[1734377448061,10.91673317,218.35,218.25,3.0091]
[1734377448458,13.29593826,218.33,218.18,1.5458]
[1734377448657,13.29593826,218.3,218.18,1.5458]
[1734377448858,13.29593826,218.33,218.18,1.5458]
[1734377449058,2.2904,218.26,218.2,13.29593826]
[1734377450267,2.2904,218.26,218.21,2.2909]
[1734377450558,13.29593826,218.33,218.2,13.29593826]
[1734377450755,3.02,218.32,218.2,13.29593826]
[1734377451063,3.02,218.35,218.23,13.29593826]
[1734377451265,3.02,218.34,218.24,2.2905]
[1734377451565,3.02,218.34,218.23,13.29593826]
[1734377451764,13.95116446,218.35,218.23,15.58663826]
[1734377452260,2.29,218.3,218.24,2.2906]
[1734377452467,10.93116446,218.35,218.23,13.29593826]
[1734377453163,13.29593826,218.36,218.23,13.29593826]
[1734377453362,10.93901255,218.35,218.23,13.29593826]
[1734377453557,2.29,218.31,218.25,2.2904]
[1734377453959,2.29,218.31,218.26,3.1251]
[1734377454156,2.29,218.31,218.26,5.4154]
[1734377454157,2.2899,218.31,218.26,5.4154]
[1734377454363,10.93901255,218.35,218.26,5.4154]
[1734377455165,2.2898,218.33,218.26,5.4154]
[1734377455460,10.93901255,218.35,218.26,5.4154]
[1734377456061,10.93901255,218.35,218.26,3.1251]
[1734377456666,6.79965619,218.34,218.26,3.1251]
[1734377457366,13.29593826,218.33,218.2,13.29593826]
[1734377457667,20.75866874,218.32,218.2,13.29593826]
[1734377457869,2.2905,218.26,218.21,2.2909]
[1734377458572,10.93901255,218.29,218.2,15.58693826]
[1734377458764,3.02,218.32,218.2,13.29593826]
[1734377458965,13.9808027,218.32,218.2,13.29593826]
[1734377459262,17.76886076,218.31,218.2,13.29593826]
[1734377459461,10.9608027,218.31,218.23,13.29593826]
[1734377459868,3.02,218.35,218.23,13.29593826]
[1734377460169,13.98259407,218.35,218.23,13.29593826]